bitfinex-derivatives/quotes_ETHF0:USTF0_20250421
["timestamp","ask_amount","ask_price","bid_price","bid_amount"]
[1745200150266,2.264,1623.7,1623.5,5.27762]
[1745200150860,2.264,1623.7,1623.5,5.27759]
[1745200151057,2.264,1623.7,1623.5,4.0455]
[1745200151256,0.00925897,1623.8,1623.5,4.0455]
[1745200151461,1.24115897,1623.8,1623.5,4.0455]
[1745200151657,1.68415897,1623.8,1623.5,4.0455]
[1745200151964,2.91608897,1623.8,1623.5,4.0455]
[1745200152164,0.00925897,1623.8,1623.7,4.43977]
[1745200152363,0.00925897,1623.8,1623.7,9.43977]
[1745200153166,4.915,1624.3,1624.2,1.23159]
[1745200153367,3.2078,1624.5,1624.4,1.23144]
[1745200153566,1.23125,1624.7,1624.4,1.23144]
[1745200153766,3.02039,1624.8,1624.7,0.00698154]
[1745200154166,5.28439,1624.8,1624.7,0.00698154]
[1745200154367,1.22422846,1624.7,1624.6,0.00925897]
[1745200154669,3.01342846,1624.7,1624.6,0.00925897]
[1745200156170,1.22422846,1624.7,1624.6,0.00925897]
[1745200156563,0.00925897,1624.9,1624.7,1.23119]
[1745200156768,0.00925897,1624.9,1624.8,1.6162]
[1745200157273,1.24031897,1624.9,1624.8,1.6162]
[1745200157465,1.23115,1624.8,1624.6,3.21705897]
[1745200157672,2.87665,1624.8,1624.6,4.83325897]
[1745200157869,1.6455,1624.8,1624.7,1.6162]
[1745200158369,1.23121,1624.7,1624.6,0.00925897]
[1745200158663,9.1918,1624.7,1624.1,3.2078]
[1745200158869,3.2078,1624.5,1624.1,4.9547]
[1745200159070,1.23159,1624.2,1624.1,8.06848758]
[1745200159371,1.23159,1624.2,1624.1,8.06150604]
[1745200159671,3.00219,1624.2,1624.1,8.06150604]
[1745200160370,5.26619,1624.2,1624.1,8.06150604]
[1745200162269,2.264,1624.2,1624.1,8.06150604]
[1745200162470,2.264,1624.2,1624.1,9.68720604]
[1745200162861,2.264,1624.2,1624.0,0.00925897]
[1745200163074,8.41335,1624.2,1624.0,1.63495897]
[1745200163260,6.14931,1624.2,1624.0,0.00925897]
[1745200163465,2.94151,1624.2,1624.0,0.00925897]
[1745200163670,2.94155,1624.2,1624.0,1.63495897]
[1745200163866,1.23167,1624.1,1624.0,1.63495897]
[1745200164070,1.23167,1624.1,1624.0,0.00925897]
[1745200164465,2.94157,1624.1,1624.0,0.00925897]
[1745200166176,1.23188,1623.9,1623.5,6.08552]
[1745200166370,2.86773,1623.8,1623.5,6.08552]
[1745200166775,1.6358,1623.8,1623.5,6.08552]
[1745200166973,1.6358,1623.8,1623.5,6.08546]
[1745200167278,2.87698897,1623.8,1623.5,4.86265897]
[1745200167468,2.87698897,1623.8,1623.5,2.88697897]
[1745200168370,2.87698897,1623.8,1623.5,1.65485897]
[1745200168679,2.87698897,1623.8,1623.5,2.88696897]
[1745200168874,1.64505897,1623.8,1623.5,2.88696897]
[1745200169174,2.87696897,1623.8,1623.5,2.88696897]
[1745200169377,2.87696897,1623.8,1623.5,2.88695897]
[1745200169578,1.64505897,1623.8,1623.5,2.88695897]
[1745200169978,2.87697897,1623.8,1623.5,1.65485897]
[1745200170183,1.64505897,1623.8,1623.5,2.88695897]
[1745200170380,2.87695897,1623.8,1623.5,2.88695897]
[1745200170572,2.87695897,1623.8,1623.5,1.65485897]
[1745200170775,2.87695897,1623.8,1623.5,2.88694897]
[1745200170972,0.00925897,1623.8,1623.7,1.23197]
[1745200171172,11.7735,1624.3,1624.0,1.23169]
[1745200171173,4.916,1624.3,1624.0,1.23169]
[1745200171377,6.14753,1624.3,1624.1,1.6175]
[1745200171580,4.90901846,1624.3,1624.1,1.6175]
[1745200171779,6.14056846,1624.3,1624.1,1.6175]
[1745200172378,4.90901846,1624.3,1624.1,1.6175]
[1745200172572,6.14053846,1624.3,1624.1,1.6175]
[1745200172776,4.90901846,1624.3,1624.1,1.6175]
[1745200172980,0.00925897,1624.4,1624.1,1.6175]
[1745200173171,0.00925897,1624.4,1624.1,2.84911]
[1745200173376,1.24071897,1624.4,1624.1,2.84911]
[1745200173676,3.2078,1624.9,1624.3,1.23149]
[1745200173880,2.92934,1624.7,1624.4,2.8489]
[1745200174080,6.14702,1625.0,1624.7,1.23118]
[1745200174380,6.14702,1625.0,1624.7,4.43898]
[1745200174579,1.23106,1624.9,1624.8,1.6278]
[1745200174778,2.94856,1624.9,1624.8,1.6278]
[1745200175275,2.94861,1624.9,1624.7,0.00925897]
[1745200175473,1.23114,1624.8,1624.7,1.63705897]
[1745200175673,1.7175,1624.8,1624.7,1.63705897]
[1745200176486,1.23112,1624.9,1624.7,1.63705897]
[1745200176981,2.94862,1624.9,1624.7,1.63705897]
[1745200177187,1.7175,1624.9,1624.7,1.63705897]
[1745200177673,2.94857,1624.9,1624.7,1.63705897]
[1745200177874,4.92525897,1625.0,1624.7,6.07601897]
[1745200178483,7.94024897,1625.0,1624.7,4.84485897]
[1745200178781,1.23114,1624.8,1624.7,1.63705897]
[1745200178979,1.23114,1624.8,1624.7,0.00925897]
[1745200179379,1.784,1624.8,1624.7,0.00925897]
[1745200179580,3.01514,1624.8,1624.7,1.69995897]
[1745200179982,1.784,1624.8,1624.7,1.69995897]
[1745200180682,3.01514,1624.8,1624.7,1.69995897]
[1745200180882,3.01514,1624.8,1624.7,0.00925897]
[1745200181076,5.27914,1624.8,1624.7,0.00925897]
[1745200185674,3.2078,1624.9,1624.7,5.00925897]
[1745200185882,3.97111566,1626.0,1625.9,1.2303]
[1745200186184,8.35486,1626.3,1626.2,1.23008]
[1745200186482,18.30727946,1626.6,1626.3,3.2078]
[1745200186782,24.27616484,1626.4,1625.9,2.264]
[1745200186980,1.23013,1626.2,1626.1,3.2078]
[1745200187283,17.19176796,1626.4,1625.4,1.23064]
[1745200187284,1.23035,1625.9,1625.4,1.23064]
[1745200187473,1.6715,1626.1,1625.8,3.2078]
[1745200187678,17.19176796,1626.0,1625.8,3.2078]
[1745200187880,12.22539688,1625.9,1625.8,3.2078]
[1745200188175,0.00916117,1626.1,1625.8,3.2078]
[1745200188383,12.22539688,1625.9,1625.8,3.2078]
[1745200188889,25.94766484,1625.9,1625.8,3.2078]
[1745200189481,0.00916117,1626.1,1625.8,3.2078]
[1745200189684,0.00916117,1626.1,1626.0,3.2078]
[1745200189980,1.758,1626.7,1626.0,5.71746474]
[1745200190186,3.2078,1627.2,1626.6,3.2078]
[1745200190487,24.27616484,1627.1,1626.8,3.2078]
[1745200190691,26.03416484,1627.1,1626.8,3.2078]
[1745200190983,12.05076796,1627.0,1626.8,3.21702963]
[1745200191179,12.05076796,1627.0,1626.9,1.6918]
[1745200191979,12.05076796,1627.0,1626.4,3.2078]
[1745200191980,12.22539688,1626.8,1626.4,3.2078]
[1745200192291,12.22539688,1626.4,1626.0,3.73663706]
[1745200192493,5.138,1626.3,1626.1,1.23012]
[1745200192680,5.138,1626.3,1626.2,1.6894]
[1745200192991,1.22897,1627.7,1627.2,1.22929]
[1745200193289,10.05839688,1627.3,1627.2,3.2078]
[1745200193688,33.58899638,1627.3,1627.2,3.2078]
[1745200194584,0.00922963,1627.6,1627.3,1.22922]
[1745200194784,0.00922963,1627.6,1627.5,3.2078]
[1745200194990,16.49252913,1627.6,1627.5,3.2078]
[1745200195198,12.05999759,1627.6,1627.5,3.2078]
[1745200195393,3.2078,1627.8,1627.7,1.22894]
[1745200195787,3.2078,1628.0,1627.9,1.22878]
[1745200195982,15.25856796,1628.0,1627.9,1.22879]
[1745200196186,0.29172262,1628.3,1627.9,7.264]
[1745200196495,12.05076796,1628.2,1628.1,3.2078]
[1745200196786,13.72236796,1628.2,1628.1,3.2078]
[1745200196985,13.72236796,1628.2,1628.1,4.43644]
[1745200197187,0.29172262,1628.3,1628.2,1.22857]
[1745200197381,12.34249058,1628.3,1628.2,2.90307]
[1745200198094,12.34249058,1628.3,1628.2,5.16707]
[1745200199690,1.22763,1629.5,1628.4,3.2078]
[1745200199888,10.05839688,1629.2,1629.0,3.2078]
[1745200200089,11.28653688,1628.8,1628.6,3.2078]
[1745200200285,10.05839688,1628.8,1628.6,3.2078]
[1745200200482,27.06736484,1628.7,1627.9,3.2078]
[1745200200684,27.06736484,1628.7,1628.1,3.2078]
[1745200200685,3.2078,1628.6,1628.1,3.2078]
[1745200200894,10.05839688,1628.4,1628.2,3.2078]
[1745200201093,13.26619688,1628.4,1628.0,5.4718]
[1745200201286,3.2078,1629.6,1629.2,1.2278]
[1745200201591,13.27822796,1629.7,1629.2,3.2078]
[1745200201890,10.05839688,1629.3,1629.0,4.43576]
[1745200202090,10.05839688,1629.1,1629.0,1.22796]
[1745200202285,15.73939688,1629.1,1628.6,3.2078]
[1745200202592,1.22836,1628.5,1628.2,3.2078]
[1745200202786,13.26619688,1628.7,1628.2,3.2078]
[1745200202787,10.05839688,1628.6,1628.3,1.22849]
[1745200202988,5.681,1629.0,1628.4,3.2078]
[1745200203189,13.70936796,1628.9,1628.8,1.22811]
[1745200203497,13.71859759,1628.9,1628.8,1.22811]
[1745200203995,5.679,1629.2,1629.1,1.22789]
[1745200204187,3.2078,1629.7,1628.8,3.2078]
[1745200204392,8.03094688,1629.3,1629.2,4.43561]
[1745200204593,20.08171484,1629.6,1629.5,1.22759]
[1745200204895,8.03094688,1629.3,1629.0,3.2078]
[1745200205195,12.46663688,1629.1,1629.0,0.00922963]
[1745200205591,1.22834,1628.5,1628.1,3.2078]
[1745200205800,9.71634688,1628.4,1628.2,1.22856]
[1745200206094,21.76711484,1628.4,1628.2,1.22851]
[1745200206295,13.27926796,1628.3,1628.1,3.2078]
[1745200206500,30.65291484,1628.2,1627.5,2.264]
[1745200206699,8.03094688,1627.7,1627.5,6.70087]
[1745200206893,1.6854,1627.6,1627.5,6.70087]
[1745200207200,21.76711484,1627.6,1627.5,3.2078]
[1745200207493,13.73616796,1627.6,1627.5,4.43689]
[1745200208100,12.05076796,1627.6,1627.5,6.70089]
[1745200208397,12.05076796,1627.6,1627.5,8.45269]
[1745200208994,6.5082,1628.2,1627.5,12.2236]
[1745200209195,6.5082,1628.2,1628.0,3.2078]
[1745200209196,21.73311484,1628.1,1628.0,3.2078]
[1745200209397,8.03094688,1627.6,1627.5,2.264]
[1745200209892,1.6514,1628.1,1627.5,7.264]
[1745200210099,20.08171484,1628.0,1627.9,3.2078]
[1745200210290,12.05076796,1628.0,1627.8,3.2078]
[1745200210493,21.73311484,1627.9,1627.8,4.43667]
[1745200210892,23.8126995,1627.9,1627.8,4.43667]
[1745200211093,16.4832995,1627.9,1627.8,4.43667]
[1745200211402,1.6859,1629.2,1629.1,1.21359]
[1745200211698,8.03094688,1629.5,1629.4,1.22766]
[1745200211903,17.46755484,1629.5,1629.4,4.43546]
[1745200212102,13.8691395,1629.5,1629.4,6.69946]
[1745200212595,9.43660796,1629.5,1629.4,6.69946]
[1745200212793,21.90008638,1629.5,1629.4,2.264]
[1745200212996,28.12767638,1629.5,1629.4,2.264]
[1745200213197,9.43660796,1629.5,1629.4,4.43546]
[1745200213597,21.90008638,1629.5,1629.4,3.2078]
[1745200213804,1.22766,1629.4,1629.3,0.00922963]
[1745200214001,18.73851484,1629.4,1629.3,0.00922963]
[1745200214202,8.03094688,1628.7,1628.3,3.2078]
[1745200214502,8.03094688,1628.7,1628.2,2.264]
[1745200214503,8.03094688,1628.4,1628.2,2.264]
[1745200214702,9.76014688,1628.3,1628.2,2.264]
[1745200214997,12.81443421,1628.3,1628.2,2.264]
[1745200215206,19.32245766,1628.3,1628.1,1.22859]
[1745200215500,12.81443421,1628.2,1628.1,0.00922963]
[1745200215902,16.44125766,1628.2,1628.1,0.00922963]
[1745200216303,13.23345766,1628.2,1628.1,1.23786963]
[1745200216607,3.2078,1628.3,1628.1,1.23781963]
[1745200216805,12.81443421,1628.2,1628.1,0.00922963]
[1745200217210,13.23345766,1628.2,1628.1,1.23786963]
[1745200217399,8.16973141,1628.2,1628.1,1.23786963]
[1745200217604,13.23345766,1628.2,1628.1,0.00922963]
[1745200218204,14.85065766,1628.2,1628.1,1.23786963]
[1745200218507,7.75070796,1628.2,1628.1,1.23786963]
[1745200219905,7.75070796,1628.2,1628.1,4.44566963]
[1745200220105,0.00922963,1628.4,1628.3,1.22849]
[1745200220603,0.00922963,1628.4,1628.3,4.43629]
[1745200220807,18.24268729,1628.4,1628.1,0.00922963]
[1745200221002,5.06372625,1628.2,1628.1,1.23786963]
[1745200221202,5.06372625,1628.2,1628.1,0.00922963]
[1745200221403,9.40590796,1628.2,1628.1,1.23786963]
[1745200221602,9.40590796,1628.2,1628.1,4.44566963]
[1745200221803,14.88865766,1628.2,1628.1,4.44566963]
[1745200222404,7.75070796,1628.2,1628.1,4.93433068]
[1745200222802,7.75070796,1628.2,1628.1,4.93529811]
[1745200223106,8.16973141,1628.2,1628.1,4.93529811]
[1745200223299,13.23345766,1628.2,1628.1,0.49885811]
[1745200223604,3.0788,1628.2,1628.1,4.93529811]
[1745200223810,10.82950796,1628.2,1628.1,4.93529811]
[1745200224108,10.82950796,1628.2,1628.1,1.72749811]
[1745200224408,10.82950796,1628.2,1628.1,4.93529811]
[1745200224909,17.54082766,1628.2,1628.1,0.49885811]
[1745200225409,3.2078,1629.4,1628.4,9.25403]
[1745200225598,3.2078,1629.4,1628.1,11.088]
[1745200225599,5.06372625,1629.0,1628.6,3.07067]
[1745200225799,5.06372625,1628.8,1628.7,3.2078]
[1745200226099,5.06372625,1628.7,1628.5,3.2078]
[1745200226305,1.22811,1628.8,1628.6,4.01575911]
[1745200226500,8.97879796,1628.9,1628.7,0.77584863]
[1745200226696,8.98802759,1628.9,1628.8,0.77584863]
[1745200226902,1.65629308,1628.9,1628.8,0.77584863]
[1745200227104,25.55772729,1628.9,1628.8,0.77584863]
[1745200228009,19.47072729,1628.9,1628.8,0.77584863]
[1745200228212,24.32968729,1628.9,1628.8,0.77584863]
[1745200228413,26.38892729,1628.9,1628.8,0.77550404]
[1745200228608,22.88593759,1628.9,1628.5,0.00922963]
[1745200228813,6.29198625,1628.6,1628.5,0.00922963]
[1745200229112,5.06372625,1628.6,1628.5,0.00922963]
[1745200229308,17.81443421,1628.6,1628.2,3.2078]
[1745200229502,1.22858,1628.2,1628.0,3.2078]
[1745200229703,5.06372625,1628.0,1627.8,4.4366]
[1745200229902,5.06372625,1627.9,1627.8,4.4366]
[1745200230101,7.75070796,1628.0,1627.9,1.22876]
[1745200230707,12.81443421,1628.0,1627.9,1.22876]
[1745200231111,12.81443421,1628.0,1627.9,3.49276]
[1745200232721,0.8757,1628.7,1628.4,1.22837]
[1745200232909,5.06372625,1628.4,1628.3,4.43629]
[1745200233112,5.06372625,1628.3,1628.1,1.7608]
[1745200233312,6.088,1628.5,1628.1,3.2078]
[1745200233508,5.06372625,1628.2,1628.1,3.2078]
[1745200233709,5.06372625,1628.3,1628.2,1.22852]
[1745200233908,5.06372625,1628.3,1628.1,4.43639]
[1745200234213,5.06372625,1628.3,1628.2,2.264]
[1745200235023,3.2078,1629.9,1628.7,3.2078]
[1745200235314,3.2078,1630.1,1629.5,3.2078]
[1745200235610,3.2078,1629.9,1629.3,3.2078]
[1745200235808,1.22769,1629.4,1629.1,3.2078]
[1745200236014,6.361,1629.6,1629.1,3.2078]
[1745200236211,1.22759,1629.5,1629.1,4.43569]
[1745200236411,0.00922963,1629.4,1629.1,4.44491963]
[1745200236613,0.00922963,1629.4,1629.3,3.2078]
[1745200237610,1.23688963,1629.4,1629.1,0.00922963]
[1745200237811,0.00922963,1629.4,1629.1,1.23706963]
[1745200238020,0.00922963,1629.4,1629.3,1.22774]
[1745200238413,0.00922963,1629.4,1629.2,3.2078]
[1745200238815,1.22774,1629.3,1629.2,3.2078]
[1745200239119,1.22814,1628.8,1628.4,1.22838]
[1745200239417,3.2078,1628.9,1628.5,3.66961696]
[1745200239614,1.22822,1628.7,1628.5,3.2078]
[1745200240015,1.22822,1628.7,1628.4,12.10273137]
[1745200240016,9.5678,1628.6,1628.4,12.10273137]
[1745200240231,1.22834,1628.5,1628.4,12.10273137]
[1745200240419,10.79611,1628.6,1628.4,12.10273137]
[1745200240722,1.22834,1628.5,1628.4,12.10273137]
[1745200241116,7.58831,1628.6,1628.4,12.10273137]
[1745200241425,1.22831,1628.6,1628.4,12.10273137]
[1745200241615,6.13798,1629.5,1628.5,3.67057383]
[1745200241616,3.21702963,1629.4,1628.5,3.67057383]
[1745200241817,1.22789,1629.1,1628.6,2.11587383]
[1745200242017,7.58789,1629.1,1628.6,1.6531]
[1745200242318,6.36,1629.1,1628.9,1.22803]
[1745200242927,6.36,1629.1,1628.9,1.22802]
[1745200243228,6.36,1629.1,1629.0,3.2078]
[1745200244127,1.22804,1628.9,1628.8,3.2078]
[1745200244625,6.36,1629.1,1628.8,3.2078]
[1745200244818,1.22797,1629.0,1628.7,4.43594]
[1745200245014,7.58793,1629.1,1628.7,4.43594]
[1745200245219,6.36,1629.1,1628.8,1.22805]
[1745200245427,1.22788,1629.2,1628.9,3.2078]
[1745200245628,3.00709,1629.1,1628.9,3.2078]
[1745200245824,1.7792,1629.1,1628.9,3.2078]
[1745200246526,3.00712,1629.1,1628.9,3.2078]
[1745200246724,1.22796,1629.0,1628.9,3.2078]
[1745200246922,1.22793,1629.1,1628.9,3.2078]
[1745200247225,1.711,1629.0,1628.9,3.2078]
[1745200248231,1.32351963,1629.4,1629.3,1.22774]
[1745200248421,1.22701,1630.3,1629.6,3.06878]
[1745200248625,1.22701,1630.3,1630.1,3.2078]
[1745200248828,1.711,1630.2,1629.9,3.2078]
[1745200249022,1.22721,1630.0,1629.9,3.2078]
[1745200249227,0.8056,1630.1,1629.9,3.2078]
[1745200249430,2.52582963,1630.1,1629.9,3.2078]
[1745200249628,1.22721,1630.0,1629.9,3.2078]
[1745200249930,2.93821,1630.0,1629.9,3.2078]
[1745200250129,1.711,1630.0,1629.9,3.2078]
[1745200250436,2.93821,1630.0,1629.9,3.2078]
[1745200250933,1.711,1630.0,1629.9,3.2078]
[1745200251523,1.711,1630.0,1629.9,6.12249]
[1745200252134,0.81482963,1630.1,1629.9,6.12249]
[1745200252441,2.57452963,1630.1,1629.9,6.12249]
[1745200252862,2.57452963,1630.1,1629.9,4.8952]
[1745200253057,0.00922963,1630.1,1629.9,4.8952]
[1745200253458,1.73172963,1630.1,1629.9,4.8952]
[1745200253659,1.73172963,1630.1,1629.9,6.12245]
[1745200253861,1.73172963,1630.1,1629.9,6.12241]
[1745200254262,2.95887963,1630.1,1629.9,4.8952]
[1745200254661,1.22721,1630.0,1629.9,4.8952]
[1745200254856,2.94971,1630.0,1629.9,4.8952]
[1745200255059,1.7225,1630.0,1629.9,4.8952]
[1745200255313,0.00922963,1630.1,1629.9,4.8952]
[1745200255460,0.00922963,1630.1,1629.9,6.12243]
[1745200255765,1.23639963,1630.1,1629.9,4.8952]
[1745200255961,2.94971,1630.0,1629.9,4.8952]
[1745200256475,2.94971,1630.0,1629.9,3.2078]
[1745200256681,1.22729,1629.9,1629.8,0.00922963]
[1745200256977,1.22729,1629.9,1629.5,1.719]
[1745200256978,1.22751,1629.6,1629.5,1.719]
[1745200257282,1.22766,1629.4,1629.3,3.2078]
[1745200257576,1.22785,1629.2,1629.1,3.2078]
[1745200257782,1.742,1629.5,1629.1,3.2078]
[1745200257783,1.22779,1629.3,1629.1,3.2078]
[1745200258085,0.00922963,1629.3,1629.2,2.94681]
[1745200258584,0.00922963,1629.3,1629.2,7.94681]
[1745200259279,1.742,1629.9,1629.5,1.22754]
[1745200259472,1.22737,1629.8,1629.7,3.2078]
[1745200259677,1.22744,1629.7,1629.6,1.6605]
[1745200259881,1.742,1629.9,1629.5,3.2078]
[1745200260081,3.2078,1629.7,1629.3,3.2078]
[1745200260315,8.04395,1629.6,1629.0,3.21702963]
[1745200260463,1.22781,1629.2,1629.1,1.6605]
[1745200260873,1.22789,1629.1,1629.0,3.21702963]
[1745200261079,1.7673,1629.1,1629.0,3.21702963]
[1745200261278,2.99519,1629.1,1629.0,5.48102963]
[1745200262277,2.99519,1629.1,1629.0,3.21702963]
[1745200262795,1.22819,1628.7,1628.6,3.2078]
[1745200262971,1.22814,1628.8,1628.6,4.9225]
[1745200263174,4.8372,1629.1,1628.7,1.7147]
[1745200263472,1.22811,1628.9,1628.7,1.7147]
[1745200263669,1.22799,1629.0,1628.7,1.7147]
[1745200263867,5.984,1629.2,1628.7,1.7147]
[1745200264074,1.23722963,1629.0,1628.9,3.2078]
[1745200264379,0.00922963,1629.0,1628.9,3.2078]
[1745200264682,0.00922963,1629.0,1628.9,4.9225]
[1745200265169,0.00922963,1629.0,1628.9,7.1865]
[1745200265978,1.23718963,1629.0,1628.9,7.1865]
[1745200266172,1.23718963,1629.0,1628.9,4.9225]
[1745200266579,1.23718963,1629.0,1628.9,3.2078]
[1745200266774,0.00922963,1629.0,1628.9,3.2078]
[1745200266974,0.00922963,1629.0,1628.9,6.21214]
[1745200267173,0.00922963,1629.0,1628.9,7.2481]
[1745200267574,0.00922963,1629.0,1628.9,8.47614]
[1745200267790,1.23718963,1629.0,1628.9,7.2481]
[1745200267969,1.23718963,1629.0,1628.9,5.4718]
[1745200268274,1.22808,1628.9,1628.7,4.9841]
[1745200268497,2.88438,1628.9,1628.7,4.9841]
[1745200268874,2.88436,1628.9,1628.7,4.9841]
[1745200269070,1.22811,1628.8,1628.7,4.9841]
[1745200269272,1.22811,1628.8,1628.7,5.4718]
[1745200269471,1.22811,1628.8,1628.7,2.264]
[1745200269873,2.88261,1628.8,1628.7,2.264]
[1745200270293,1.22819,1628.7,1628.6,0.00922963]
[1745200270481,2.88269,1628.7,1628.6,0.00922963]
[1745200272072,1.6545,1628.7,1628.6,0.00922963]
[1745200272274,2.88269,1628.7,1628.6,0.00922963]
[1745200273658,0.00922963,1629.0,1628.9,1.22804]
[1745200273861,3.2078,1629.8,1628.9,10.1887016]
[1745200274052,1.22781,1629.2,1629.1,3.2078]
[1745200274360,1.22781,1629.2,1628.9,3.2078]
[1745200274646,1.7287,1629.1,1628.8,1.22807]
[1745200274846,1.73792963,1629.1,1628.9,3.2078]
[1745200275050,2.96585963,1629.1,1628.9,3.2078]
[1745200275353,1.73792963,1629.1,1628.9,3.2078]
[1745200275555,2.96587963,1629.1,1628.9,3.2078]
[1745200276149,2.96587963,1629.1,1628.9,5.4718]
[1745200276352,1.73792963,1629.1,1628.9,6.69983]
[1745200276551,2.96581963,1629.1,1628.9,5.4718]
[1745200277149,2.96581963,1629.1,1628.9,7.0863]
[1745200277851,2.96585963,1629.1,1628.9,7.0863]
[1745200278058,2.96584963,1629.1,1628.9,7.0863]
[1745200278451,1.22796,1629.0,1628.9,2.264]
[1745200278651,3.74216,1629.0,1628.9,2.264]
[1745200278855,1.22804,1628.9,1628.8,0.00922963]
[1745200279159,2.91194,1628.9,1628.8,0.00922963]
[1745200280461,1.6839,1628.9,1628.8,0.00922963]
[1745200281053,1.6839,1628.9,1628.8,1.68382963]
[1745200281253,0.00922963,1629.1,1628.8,2.91193963]
[1745200281455,2.98421963,1629.1,1629.0,3.2078]
[1745200281954,2.98421963,1629.1,1628.9,1.6746]
[1745200282154,2.98421963,1629.1,1628.9,3.9386]
[1745200282659,1.22796,1629.0,1628.9,2.264]
[1745200282859,2.97506,1629.0,1628.9,2.264]
[1745200283259,2.97506,1629.0,1628.8,3.21702963]
[1745200283455,1.22804,1628.9,1628.8,3.21702963]
[1745200283656,2.97514,1628.9,1628.8,3.21702963]
[1745200285463,2.97514,1628.9,1628.8,0.00922963]
[1745200286568,1.7471,1628.9,1628.8,3.21702963]
[1745200287267,2.97514,1628.9,1628.8,3.21702963]
[1745200288669,1.7471,1628.9,1628.8,3.21702963]
[1745200289471,1.7471,1628.9,1628.8,0.00922963]
[1745200289666,3.2078,1630.4,1628.8,14.94232274]
[1745200289962,3.2078,1630.0,1629.5,3.2078]
[1745200290164,3.2078,1629.8,1629.5,2.264]
[1745200290363,2.99377,1629.7,1629.5,2.264]
[1745200290559,1.7663,1629.7,1629.5,2.264]
[1745200290760,2.99378,1629.7,1629.5,2.264]
[1745200291267,1.22759,1629.5,1629.4,0.00922963]
[1745200291464,1.22775,1629.3,1629.0,3.2078]
[1745200291971,1.7663,1629.2,1629.0,3.2078]
[1745200292162,1.7663,1629.2,1629.0,5.4718]
[1745200292557,2.99415,1629.2,1629.0,5.4718]
[1745200292764,1.7663,1629.2,1629.0,5.4718]
[1745200292958,2.99414,1629.2,1629.0,2.264]
[1745200293164,1.22789,1629.1,1629.0,2.264]
[1745200293367,9.26619,1629.1,1629.0,2.264]
[1745200294272,1.22796,1629.0,1628.9,0.00922963]
[1745200294470,6.21406,1629.0,1628.9,0.00922963]
[1745200295468,1.7783,1629.0,1628.4,3.2078]
[1745200295671,3.00629,1629.0,1628.7,1.22817]
[1745200295871,3.00629,1629.0,1628.6,4.43602]
[1745200296068,1.22806,1628.9,1628.7,1.7484]
[1745200296272,2.99517,1628.9,1628.7,1.7484]
[1745200297068,1.7671,1628.9,1628.7,4.0124]
[1745200297466,2.99517,1628.9,1628.7,4.0124]
[1745200297869,1.22811,1628.8,1628.7,4.0124]
[1745200298171,3.2078,1629.0,1628.7,9.0124]
[1745200298469,1.22799,1629.0,1628.8,3.2078]
[1745200298672,1.7671,1628.9,1628.8,3.2078]
[1745200298974,1.7671,1628.9,1628.7,5.24056]
[1745200299778,9.9749,1628.9,1628.2,3.2078]
[1745200299978,0.8638,1628.8,1628.3,0.46562329]
[1745200300174,6.26,1629.0,1628.5,3.07086]
[1745200300369,1.6779,1629.1,1628.6,5.33308352]
[1745200300573,1.6779,1629.1,1628.9,1.228]
[1745200301071,1.6779,1629.1,1629.0,1.6599]
[1745200301577,2.90579,1629.1,1629.0,1.6599]
[1745200301974,1.6779,1629.1,1629.0,1.6599]
[1745200302176,1.6779,1629.1,1629.0,3.9239]
[1745200302371,1.6779,1629.1,1629.0,2.264]
[1745200303077,2.90579,1629.1,1629.0,2.264]
[1745200303275,1.6779,1629.1,1629.0,3.9949]
[1745200303464,2.90579,1629.1,1629.0,3.9949]
[1745200303875,2.90579,1629.1,1629.0,2.264]
[1745200307064,0.00922963,1629.3,1629.2,1.22781]
[1745200307269,0.00922963,1629.3,1629.1,1.7473]
[1745200307475,1.22781,1629.2,1629.1,1.7473]
[1745200307777,7.9264,1629.2,1628.9,1.7473]
[1745200307975,7.9264,1629.2,1628.9,2.97528]
[1745200308178,9.15422,1629.2,1628.9,4.0113]
[1745200308376,1.22794,1629.1,1628.9,4.0113]
[1745200308679,1.7415,1629.0,1628.9,5.23934]
[1745200308872,2.96946,1629.0,1628.9,2.264]
[1745200309078,2.96946,1629.0,1628.9,5.4718]
[1745200309280,1.7415,1629.0,1628.9,3.2078]
[1745200309475,19.49436583,1630.2,1628.9,5.0]
[1745200309681,1.22719,1630.1,1629.8,3.2078]
[1745200309982,6.27591,1630.0,1629.4,3.2078]
[1745200310174,6.26,1629.9,1629.4,3.2078]
[1745200310375,1.7415,1629.8,1629.2,4.8353]
[1745200310580,9.2289,1629.8,1629.4,1.2276]
[1745200310781,0.00922963,1629.7,1629.5,1.6275]
[1745200311283,1.76042963,1629.7,1629.6,3.2078]
[1745200311484,0.00922963,1629.7,1629.5,1.6275]
[1745200311784,0.00922963,1629.7,1629.6,3.2078]
[1745200311980,1.76042963,1629.7,1629.6,4.43531]
[1745200312282,1.76042963,1629.7,1629.6,3.2078]
[1745200312878,2.98786963,1629.7,1629.6,3.2078]
[1745200313279,1.23668963,1629.7,1629.5,3.2078]
[1745200313479,1.76042963,1629.7,1629.5,3.2078]
[1745200313882,1.22766,1629.4,1629.3,3.21702963]
[1745200314282,3.81594,1629.5,1629.3,3.21702963]
[1745200314680,2.5883,1629.5,1629.3,3.21702963]
[1745200315081,3.81591,1629.5,1629.3,3.21702963]
[1745200315281,2.5883,1629.5,1629.3,3.21702963]
[1745200315677,3.81589,1629.5,1629.3,3.21702963]
[1745200315878,2.5883,1629.5,1629.3,3.21702963]
[1745200316308,2.5883,1629.5,1629.3,4.44476963]
[1745200316511,2.5883,1629.5,1629.3,3.21702963]
[1745200316882,2.5883,1629.5,1629.3,4.44473963]
[1745200317087,3.81594,1629.5,1629.3,3.21702963]
[1745200318199,2.5883,1629.5,1629.3,4.44474963]
[1745200318397,3.81589,1629.5,1629.3,3.21702963]
[1745200318695,3.81593,1629.5,1629.3,3.21702963]
[1745200319804,2.5883,1629.5,1629.3,3.21702963]
[1745200320288,1.22766,1629.4,1629.3,3.21702963]